lending/lending_fUSD_20240219
["ID","MTS","AMOUNT","RATE_DAILY","PERIOD"]
[314422989,1708331445774,-3511.84867,0.00038889,14]
[314422990,1708331445783,-344.98824,0.00038889,14]
[314422991,1708331445793,-234.619198,0.00038889,14]
[314422992,1708331445802,-344.98824,0.00038889,14]
[314422993,1708331445812,-234.619198,0.00038889,14]
[314422994,1708331445821,-1106.186879,0.00038889,14]
[314422995,1708331445831,-322.385201,0.00038889,14]
[314422996,1708331445840,-322.385201,0.00038889,14]
[314422997,1708331445850,-151.0,0.00038889,14]
[314422998,1708331445860,-1106.186879,0.00038889,14]
[314422999,1708331445870,-151.0,0.00038889,14]
[314423000,1708331445879,-1052.44782,0.00038889,14]
[314423001,1708331445890,-151.0,0.00038889,14]
[314423002,1708331445900,-1052.44782,0.00038889,14]
[314423003,1708331445910,-4493.148202,0.00038889,14]
[314423004,1708331445920,-151.0,0.00038889,14]
[314423005,1708331445929,-4493.148202,0.00038889,14]
[314423006,1708331445938,-151.0,0.00038889,14]
[314423007,1708331445948,-155.751035,0.00038889,14]
[314423008,1708331445958,-336.234787,0.0003889,14]
[314423009,1708331445970,-336.234787,0.0003889,14]
[314423010,1708331445979,-151.0,0.0003889,14]
[314423011,1708331445991,-151.0,0.0003889,14]
[314423012,1708331446002,-170.863115,0.0003889,14]
[314423013,1708331446011,-170.863115,0.0003889,14]
[314423014,1708331446020,-151.0,0.0003889,14]
[314423015,1708331446030,-311.416744,0.0003889,14]
[314423016,1708331446039,-311.416744,0.0003889,14]
[314423017,1708331446049,-393.990139,0.0003889,14]
[314423018,1708331446058,-393.990139,0.0003889,14]
[314423019,1708331446067,-215.851779,0.0003889,14]
[314423020,1708331446077,-151.0,0.0003889,14]
[314423021,1708331446087,-215.851779,0.0003889,14]
[314423022,1708331446096,-151.0,0.0003889,14]
[314423023,1708331446106,-320.345835,0.0003889,14]
[314423024,1708331446116,-320.345835,0.0003889,14]
[314423025,1708331446125,-496.34790707,0.0003889,2]
[314423026,1708331446135,-500.0,0.00038892,4]
[314423027,1708331446145,-500.0,0.00038892,4]
[314423028,1708331446155,-500.0,0.00038892,20]
[314423029,1708331446164,-440.47420124,0.00038892,27]
[314423030,1708331446173,-500.0,0.00038892,4]
[314423031,1708331446182,-500.0,0.00038892,2]
[314423032,1708331446192,-1110.99,0.00038892,4]
[314423033,1708331446201,-500.0,0.00038892,4]
[314423034,1708331446214,-500.0,0.00038892,4]
[314423035,1708331446225,-2895.09,0.00038892,4]
[314423036,1708331446235,-655.663594,0.00038892,2]
[314423037,1708331446244,-655.663594,0.00038892,2]
[314423038,1708331446254,-202.301092,0.00038892,14]
[314423039,1708331446264,-684.563752,0.00038892,14]
[314423040,1708331446274,-202.301092,0.00038892,14]
[314423041,1708331446283,-684.563752,0.00038892,14]
[314423042,1708331446293,-151.0,0.00038892,14]
[314423043,1708331446303,-500.0,0.00038892,4]
[314423044,1708331446312,-605.900015,0.00038893,2]
[314423045,1708331446322,-357.37524551,0.00038893,4]
[314423046,1708331446331,-151.0,0.00038894,14]
[314423047,1708331446341,-157.940926,0.00038894,14]
[314423048,1708331446351,-500.0,0.00038894,4]
[314423049,1708331446361,-589.63035737,0.00038894,4]
[314423050,1708331446370,-151.0,0.00038894,14]
[314423051,1708331446381,-500.0,0.00038894,4]
[314423052,1708331446390,-500.0,0.00038894,4]
[314423053,1708331446399,-500.0,0.00038894,4]
[314423054,1708331446409,-500.0,0.00038894,4]
[314423055,1708331446418,-500.0,0.00038894,4]
[314423056,1708331446427,-300.0,0.00038894,2]
[314423057,1708331446436,-175.59982531,0.00038894,2]
[314423058,1708331446445,-500.0,0.00038894,4]
[314423059,1708331446455,-500.0,0.00038894,4]
[314423060,1708331446466,-500.0,0.00038894,4]
[314423061,1708331446476,-500.0,0.00038894,4]
[314423062,1708331446485,-500.0,0.00038894,2]
[314423063,1708331446494,-500.0,0.00038894,2]
[314423064,1708331446504,-500.0,0.00038894,2]
[314423065,1708331446513,-500.0,0.00038894,2]
[314423066,1708331446522,-2895.09,0.00038894,4]
[314423067,1708331446531,-2895.09,0.00038894,4]
[314423068,1708331446540,-2895.09,0.00038894,4]
[314423069,1708331446549,-2895.09,0.00038894,4]
[314423070,1708331446558,-182.68825017,0.00038896,2]
[314423071,1708331446568,-500.0,0.00038898,4]
[314423072,1708331446577,-500.0,0.00038898,2]
[314423073,1708331446587,-2895.09,0.00038898,4]
[314423074,1708331446596,-500.0,0.00038899,4]
[314423075,1708331446605,-500.0,0.00038899,4]
[314423076,1708331446620,-500.0,0.00038899,4]
[314423077,1708331446629,-500.0,0.00038899,4]
[314423078,1708331446638,-500.0,0.00038899,20]
[314423079,1708331446648,-576.0236149,0.00038899,20]
[314423080,1708331446657,-151.0,0.00038899,14]
[314423081,1708331446666,-245.831503,0.00038899,14]
[314423082,1708331446675,-245.831503,0.00038899,14]
[314423083,1708331446685,-151.0,0.00038899,14]
[314423084,1708331446696,-151.0,0.00038899,14]
[314423085,1708331446705,-500.0,0.00038899,4]
[314423086,1708331446715,-500.0,0.00038899,4]
[314423087,1708331446724,-500.0,0.00038899,2]
[314423088,1708331446733,-1110.99,0.00038899,4]
[314423089,1708331446742,-1110.99,0.00038899,4]
[314423090,1708331446751,-500.0,0.00038899,4]
[314423091,1708331446760,-500.0,0.00038899,4]
[314423092,1708331446770,-500.0,0.00038899,4]
[314423093,1708331446779,-500.0,0.00038899,4]
[314423094,1708331446788,-2895.09,0.00038899,4]
[314423095,1708331446797,-500.0,0.00038899,4]
[314423096,1708331446807,-500.0,0.00038899,4]
[314423097,1708331446816,-500.0,0.00038899,4]
[314423098,1708331446826,-500.0,0.00038899,4]
[314423099,1708331446835,-500.0,0.00038899,4]
[314423100,1708331446845,-500.0,0.00038899,4]
[314423101,1708331446855,-500.0,0.00038899,4]
[314423102,1708331446865,-500.0,0.00038899,4]
[314423103,1708331446875,-500.0,0.00038899,4]
[314423104,1708331446885,-500.0,0.00038899,4]
[314423105,1708331446894,-491.76,0.00038899,4]
[314423106,1708331446904,-500.0,0.00038899,4]
[314423107,1708331446914,-500.0,0.00038899,4]
[314423108,1708331446923,-500.0,0.00038899,4]
[314423109,1708331446934,-500.0,0.00038899,4]
[314423110,1708331446944,-500.0,0.00038899,4]
[314423111,1708331446953,-1141.94,0.00038899,4]
[314423112,1708331446962,-500.0,0.00038899,4]
[314423113,1708331446971,-1141.94,0.00038899,4]
[314423114,1708331446980,-500.0,0.00038899,4]
[314423115,1708331446991,-500.0,0.00038899,4]
[314423116,1708331447001,-2399.85,0.00038899,4]
[314423117,1708331447010,-2399.85,0.00038899,4]
[314423118,1708331447020,-500.0,0.00038899,4]
[314423119,1708331447029,-500.0,0.00038899,4]
[314423121,1708331447037,-804.69,0.00038899,4]
[314423122,1708331447047,-804.69,0.00038899,4]
[314423123,1708331447056,-1142.03,0.00038899,4]
[314423124,1708331447065,-1142.03,0.00038899,4]
[314423125,1708331447075,-500.0,0.00038899,4]
[314423126,1708331447084,-500.0,0.00038899,4]
[314423127,1708331447094,-500.0,0.00038899,4]
[314423128,1708331447102,-203.81890306,0.00038899,4]
[314423129,1708331447111,-250.0,0.000389,120]
[314423130,1708331447121,-11021.33577149,0.000389,3]
[314423131,1708331447130,-251908.38566111,0.000389,2]
[314423132,1708331447139,-151.0,0.000389,14]
[314423133,1708331447148,-179.922847,0.000389,14]
[314423134,1708331447157,-151.0,0.000389,14]
[314423135,1708331447166,-218.725623,0.000389,14]
[314423136,1708331447175,-191.095027,0.000389,14]
[314423137,1708331447184,-218.725623,0.000389,14]
[314423138,1708331447194,-164.555975,0.000389,14]
[314423139,1708331447203,-164.555975,0.000389,14]
[314423140,1708331447213,-151.0,0.000389,14]
[314423141,1708331447223,-151.0,0.000389,14]
[314423142,1708331447232,-184.789088,0.000389,7]
[314423143,1708331447241,-184.789088,0.000389,7]
[314423144,1708331447251,-2000.0,0.000389,2]
[314423145,1708331447260,-151.0,0.000389,14]
[314423146,1708331447269,-245.831503,0.000389,14]
[314423147,1708331447278,-245.831503,0.000389,14]
[314423148,1708331447288,-151.0,0.000389,14]
[314423149,1708331447297,-151.0,0.000389,14]
[314423150,1708331447306,-151.0,0.000389,14]
[314423151,1708331447315,-151.0,0.000389,14]
[314423152,1708331447324,-151.0,0.000389,7]
[314423153,1708331447333,-215.400571,0.000389,14]
[314423154,1708331447342,-215.400571,0.000389,14]
[314423155,1708331447351,-547.02770907,0.000389,2]
[314423156,1708331447360,-840.524964,0.000389,14]
[314423157,1708331447369,-840.524964,0.000389,14]
[314423158,1708331447378,-176.376743,0.000389,14]
[314423159,1708331447388,-151.0,0.000389,14]
[314423160,1708331447397,-176.376743,0.000389,14]
[314423161,1708331447406,-151.0,0.000389,14]
[314423162,1708331447415,-303.213569,0.000389,14]
[314423163,1708331447425,-160.014155,0.000389,7]
[314423164,1708331447434,-303.213569,0.000389,14]
[314423165,1708331447442,-185.966833,0.000389,3]
[314423166,1708331447451,-151.0,0.000389,14]
[314423167,1708331447461,-185.966833,0.000389,3]
[314423168,1708331447471,-3289.5,0.000389,3]
[314423169,1708331447480,-3289.5,0.000389,3]
[314423170,1708331447489,-3289.5,0.000389,3]
[314423171,1708331447498,-3289.5,0.000389,3]
[314423172,1708331447507,-3289.5,0.000389,3]
[314423173,1708331447516,-3289.5,0.000389,3]
[314423174,1708331447525,-3289.5,0.000389,3]
[314423175,1708331447535,-3289.5,0.000389,3]
[314423176,1708331447544,-3289.5,0.000389,3]
[314423177,1708331447553,-3289.5,0.000389,3]
[314423178,1708331447562,-3289.5,0.000389,3]
[314423179,1708331447572,-3289.5,0.000389,3]
[314423180,1708331447581,-3289.5,0.000389,3]
[314423181,1708331447590,-3289.5,0.000389,3]
[314423182,1708331447600,-3289.5,0.000389,3]
[314423183,1708331447611,-3289.5,0.000389,3]
[314423184,1708331447621,-3289.5,0.000389,3]
[314423185,1708331447630,-3289.5,0.000389,3]
[314423186,1708331447639,-3289.5,0.000389,3]
[314423187,1708331447648,-3289.5,0.000389,3]
[314423188,1708331447658,-558.619538,0.000389,14]
[314423189,1708331447667,-558.619538,0.000389,14]
[314423190,1708331447676,-407.651178,0.000389,14]
[314423191,1708331447685,-407.651178,0.000389,14]
[314423192,1708331447696,-546.59124424,0.000389,2]
[314423193,1708331447705,-151.0,0.000389,14]
[314423194,1708331447716,-407.313882,0.000389,14]
[314423195,1708331447725,-407.313882,0.000389,14]
[314423196,1708331447735,-152.705371,0.000389,14]
[314423197,1708331447744,-152.705371,0.000389,14]
[314423198,1708331447753,-181.994187,0.000389,14]
[314423199,1708331447762,-151.0,0.000389,14]
[314423200,1708331447770,-1747.112516,0.000389,14]
[314423201,1708331447780,-1747.112516,0.000389,14]
[314423202,1708331447789,-151.0,0.000389,14]
[314423203,1708331447799,-336.234787,0.000389,14]
[314423204,1708331447808,-336.234787,0.000389,14]
[314423205,1708331447818,-151.0,0.000389,14]
[314423206,1708331447828,-655.663594,0.000389,2]
[314423207,1708331447837,-655.663594,0.000389,2]
[314423208,1708331447847,-202.301092,0.000389,14]
[314423209,1708331447856,-684.563752,0.000389,14]
[314423210,1708331447865,-202.301092,0.000389,14]
[314423211,1708331447875,-684.563752,0.000389,14]
[314423212,1708331447884,-151.0,0.000389,14]
[314423213,1708331447893,-151.0,0.000389,14]
[314423214,1708331447903,-170.863115,0.000389,14]
[314423215,1708331447912,-170.863115,0.000389,14]
[314423216,1708331447922,-151.0,0.000389,14]
[314423217,1708331447932,-311.416744,0.000389,14]
[314423218,1708331447942,-311.416744,0.000389,14]
[314423219,1708331447951,-393.990139,0.000389,14]
[314423220,1708331447964,-393.990139,0.000389,14]
[314423221,1708331447973,-152.78,0.000389,3]
[314423222,1708331447982,-152.78,0.000389,3]
[314423223,1708331447992,-152.78,0.000389,3]
[314423224,1708331448003,-152.78,0.000389,3]
[314423225,1708331448013,-152.78,0.000389,3]
[314423226,1708331448022,-152.78,0.000389,3]
[314423227,1708331448032,-152.78,0.000389,3]
[314423228,1708331448043,-215.851779,0.000389,14]
[314423229,1708331448052,-151.0,0.000389,14]
[314423230,1708331448062,-215.851779,0.000389,14]
[314423231,1708331448073,-151.0,0.000389,14]
[314423232,1708331448083,-320.345835,0.000389,14]
[314423233,1708331448092,-320.345835,0.000389,14]
[314423234,1708331448102,-289.628742,0.000389,14]
[314423235,1708331448111,-151.0,0.000389,14]
[314423236,1708331448121,-289.628742,0.000389,14]
[314423237,1708331448130,-256.749914,0.000389,14]
[314423238,1708331448140,-220.534074,0.000389,14]
[314423239,1708331448149,-163.569567,0.000389,14]
[314423240,1708331448159,-256.749914,0.000389,14]
[314423241,1708331448169,-220.534074,0.000389,14]
[314423242,1708331448178,-163.569567,0.000389,14]
[314423243,1708331448188,-424.796395,0.000389,14]
[314423244,1708331448198,-424.796395,0.000389,14]
[314423245,1708331448208,-151.0,0.000389,14]
[314423246,1708331448341,-151.0,0.000389,14]
[314423247,1708331448367,-151.0,0.000389,10]
[314423248,1708331448376,-6854.281877,0.000389,14]
[314423249,1708331448386,-6854.281877,0.000389,14]
[314423250,1708331448395,-8550.0,0.000389,14]
[314423251,1708331448404,-8550.0,0.000389,14]
[314423252,1708331448413,-1402.654032,0.000389,14]
[314423253,1708331448422,-1402.654032,0.000389,14]
[314423254,1708331448431,-151.0,0.000389,14]
[314423255,1708331448440,-262.481154,0.000389,14]
[314423256,1708331448450,-861.933875,0.000389,14]
[314423257,1708331448459,-151.0,0.000389,14]
[314423258,1708331448471,-262.481154,0.000389,14]
[314423259,1708331448481,-861.933875,0.000389,14]
[314423260,1708331448491,-300.720131,0.000389,14]
[314423261,1708331448500,-300.720131,0.000389,14]
[314423262,1708331448510,-151.0,0.000389,14]
[314423263,1708331448520,-151.0,0.000389,14]
[314423264,1708331448529,-151.0,0.000389,14]
[314423265,1708331448538,-761.988408,0.000389,14]
[314423266,1708331448548,-761.988408,0.000389,14]
[314423267,1708331448557,-168.39365,0.000389,14]
[314423268,1708331448567,-168.39365,0.000389,14]
[314423269,1708331448576,-345.987493,0.000389,14]
[314423270,1708331448586,-294.905721,0.000389,14]
[314423271,1708331448595,-345.987493,0.000389,14]
[314423272,1708331448608,-294.905721,0.000389,14]
[314423273,1708331448617,-164.035459,0.000389,14]
[314423274,1708331448626,-164.035459,0.000389,14]
[314423275,1708331448635,-1206.74,0.000389,4]
[314423276,1708331448644,-4019.845621,0.000389,14]
[314423277,1708331448654,-201.498821,0.000389,14]
[314423278,1708331448663,-4019.845621,0.000389,14]
[314423279,1708331448672,-151.0,0.000389,7]
[314423280,1708331448682,-201.498821,0.000389,14]
[314423281,1708331448691,-332.222538,0.000389,14]
[314423282,1708331448701,-332.222538,0.000389,14]
[314423283,1708331448710,-221.790654,0.000389,14]
[314423284,1708331448721,-1181.116676,0.000389,14]
[314423285,1708331448730,-221.790654,0.000389,14]
[314423286,1708331448739,-1181.116676,0.000389,14]
[314423287,1708331448748,-3511.84867,0.000389,14]
[314423288,1708331448757,-3511.84867,0.000389,14]
[314423289,1708331448766,-344.98824,0.000389,14]
[314423290,1708331448776,-234.619198,0.000389,14]
[314423291,1708331448785,-344.98824,0.000389,14]
[314423292,1708331448795,-234.619198,0.000389,14]
[314423293,1708331448804,-322.385201,0.000389,14]
[314423294,1708331448814,-1106.186879,0.000389,14]
[314423295,1708331448823,-322.385201,0.000389,14]
[314423296,1708331448832,-151.0,0.000389,14]
[314423297,1708331448842,-1106.186879,0.000389,14]
[314423298,1708331448852,-151.0,0.000389,14]
[314423299,1708331448862,-1052.44782,0.000389,14]
[314423300,1708331448872,-151.0,0.000389,14]
[314423301,1708331448883,-1052.44782,0.000389,14]
[314423302,1708331448894,-4493.148202,0.000389,14]
[314423303,1708331448905,-151.0,0.000389,14]
[314423304,1708331448915,-4493.148202,0.000389,14]
[314423305,1708331448926,-151.0,0.000389,14]
[314423306,1708331448937,-153.99,0.00038902,2]
[314423307,1708331448947,-410.0,0.00038904,4]
[314423308,1708331448957,-500.0,0.00038909,4]
[314423309,1708331448968,-500.0,0.00038909,4]
[314423310,1708331448977,-500.0,0.00038909,4]
[314423311,1708331448987,-500.0,0.00038909,4]
[314423312,1708331448997,-1141.94,0.00038909,4]
[314423313,1708331449007,-1142.03,0.00038909,4]
[314423314,1708331449018,-253.07,0.0003891,2]
[314423315,1708331449027,-153.98,0.00038936,2]
[314423316,1708331449036,-383.28,0.00038944,4]
[314423317,1708331449045,-3093.25878991,0.00038945,9]
[314423318,1708331449054,-554.85022029,0.00038962,2]
[314423319,1708331449063,-412.29,0.0003897,2]
[314423320,1708331449073,-500.0,0.00038985,4]
[314423321,1708331449082,-500.0,0.00038986,4]
[314423322,1708331449092,-500.0,0.00038986,4]
[314423323,1708331449101,-500.0,0.00038986,4]
[314423324,1708331449110,-500.0,0.00038986,2]
[314423325,1708331449120,-1110.99,0.00038986,4]
[314423326,1708331449129,-500.0,0.00038986,4]
[314423327,1708331449138,-500.0,0.00038986,4]
[314423328,1708331449148,-2895.09,0.00038986,4]
[314423329,1708331449157,-500.0,0.00038986,4]
[314423330,1708331449167,-500.0,0.00038986,4]
[314423331,1708331449176,-500.0,0.00038986,4]
[314423332,1708331449186,-500.0,0.00038986,4]
[314423333,1708331449195,-500.0,0.00038986,4]
[314423334,1708331449204,-2399.85,0.00038986,4]
[314423335,1708331449214,-500.0,0.00038986,4]
[314423336,1708331449223,-804.69,0.00038986,4]
[314423337,1708331449232,-5000.0,0.00038986,2]
[314423338,1708331449241,-5000.0,0.00038986,2]
[314423339,1708331449251,-5000.0,0.00038986,2]
[314423340,1708331449260,-5000.0,0.00038986,2]
[314423341,1708331449269,-5000.0,0.00038986,2]
[314423342,1708331449278,-2506.08593692,0.00038986,2]
[314423343,1708331449288,-500.0,0.00038989,4]
[314423344,1708331449298,-500.0,0.00038989,4]
[314423345,1708331449306,-500.0,0.00038989,4]
[314423346,1708331449316,-500.0,0.00038989,4]
[314423347,1708331449325,-1141.94,0.00038989,4]
[314423348,1708331449334,-1142.03,0.00038989,4]
[314423349,1708331449344,-151.0,0.0003899,14]
[314423350,1708331449353,-215.782371,0.0003899,14]
[314423351,1708331449362,-218.725623,0.0003899,14]
[314423352,1708331449371,-218.725623,0.0003899,14]
[314423353,1708331449380,-164.555975,0.0003899,14]
[314423354,1708331449389,-164.555975,0.0003899,14]
[314423355,1708331449398,-151.0,0.0003899,14]
[314423356,1708331449407,-151.0,0.0003899,14]
[314423357,1708331449416,-184.789088,0.0003899,7]
[314423358,1708331449425,-184.789088,0.0003899,7]
[314423359,1708331449435,-151.93652,0.0003899,14]
[314423360,1708331449443,-245.831503,0.0003899,14]
[314423361,1708331449452,-245.831503,0.0003899,14]
[314423362,1708331449461,-151.0,0.0003899,14]
[314423363,1708331449472,-151.0,0.0003899,14]
[314423364,1708331449481,-151.0,0.0003899,14]
[314423365,1708331449490,-151.0,0.0003899,14]
[314423366,1708331449499,-231.693,0.00038997,2]
[314423367,1708331449508,-158.0,0.00038997,2]
[314423368,1708331449517,-250.0,0.00038997,2]
[314423369,1708331449526,-158.868,0.00038997,2]
[314423370,1708331449535,-235.769,0.00038997,2]
[314423371,1708331449544,-155.0,0.00038997,2]
[314423372,1708331449553,-202.0,0.00038997,2]
[314423373,1708331449562,-150.0,0.00038997,2]
[314423374,1708331449571,-246.253,0.00038997,2]
[314423375,1708331449616,-200.0,0.00038997,2]
[314423376,1708331449625,-152.972,0.00038997,2]
[314423377,1708331449634,-156.12,0.00038997,2]
[314423378,1708331449644,-226.666,0.00038997,2]
[314423379,1708331449653,-152.102,0.00038997,2]
[314423380,1708331449662,-150.0,0.00038997,2]
[314423381,1708331449672,-150.0,0.00038997,2]
[314423382,1708331449681,-500.0,0.00038999,4]
[314423383,1708331449691,-500.0,0.00038999,4]
[314423384,1708331449700,-500.0,0.00038999,4]
[314423385,1708331449709,-151.0,0.00038999,7]
[314423386,1708331449720,-215.400571,0.00038999,14]
[314423387,1708331449729,-215.400571,0.00038999,14]
[314423388,1708331449738,-840.524964,0.00038999,14]
[314423389,1708331449748,-840.524964,0.00038999,14]
[314423390,1708331449757,-176.376743,0.00038999,14]
[314423391,1708331449766,-151.0,0.00038999,14]
[314423392,1708331449776,-176.376743,0.00038999,14]
[314423393,1708331449785,-161.18556,0.00038999,14]
[314423394,1708331449794,-303.213569,0.00038999,14]
[314423395,1708331449803,-303.213569,0.00038999,14]
[314423396,1708331449813,-185.966833,0.00038999,3]
[314423397,1708331449822,-151.0,0.00038999,14]
[314423398,1708331449832,-185.966833,0.00038999,3]
[314423399,1708331449841,-558.619538,0.00038999,14]
[314423400,1708331449850,-558.619538,0.00038999,14]
[314423401,1708331449859,-407.651178,0.00038999,14]
[314423402,1708331449869,-500.0,0.00038999,4]
[314423403,1708331449878,-407.651178,0.00038999,14]
[314423404,1708331449887,-151.0,0.00038999,14]
[314423405,1708331449896,-500.0,0.00038999,2]
[314423406,1708331449906,-407.313882,0.00038999,14]
[314423407,1708331449915,-407.313882,0.00038999,14]
[314423408,1708331449925,-152.705371,0.00038999,14]
[314423409,1708331449935,-1110.99,0.00038999,4]
[314423410,1708331449945,-152.705371,0.00038999,14]
[314423411,1708331449954,-500.0,0.00038999,4]
[314423412,1708331449963,-500.0,0.00038999,4]
[314423413,1708331449972,-159.986691,0.00038999,14]
[314423414,1708331449981,-1747.112516,0.00038999,14]
[314423415,1708331449990,-1747.112516,0.00038999,14]
[314423416,1708331450000,-151.0,0.00038999,14]
[314423417,1708331450009,-2895.09,0.00038999,4]
[314423418,1708331450018,-336.234787,0.00038999,14]
[314423419,1708331450028,-336.234787,0.00038999,14]
[314423420,1708331450037,-151.0,0.00038999,14]
[314423421,1708331450047,-655.663594,0.00038999,2]
[314423422,1708331450056,-655.663594,0.00038999,2]
[314423423,1708331450066,-202.301092,0.00038999,14]
[314423424,1708331450075,-684.563752,0.00038999,14]
[314423425,1708331450085,-202.301092,0.00038999,14]
[314423426,1708331450095,-684.563752,0.00038999,14]
[314423427,1708331450104,-151.0,0.00038999,14]
[314423428,1708331450113,-151.0,0.00038999,14]
[314423429,1708331450122,-170.863115,0.00038999,14]
[314423430,1708331450131,-170.863115,0.00038999,14]
[314423431,1708331450140,-500.0,0.00038999,4]
[314423432,1708331450149,-151.0,0.00038999,14]
[314423433,1708331450158,-500.0,0.00038999,4]
[314423434,1708331450167,-500.0,0.00038999,4]
[314423435,1708331450176,-311.416744,0.00038999,14]
[314423436,1708331450185,-311.416744,0.00038999,14]
[314423437,1708331450194,-393.990139,0.00038999,14]
[314423438,1708331450203,-393.990139,0.00038999,14]
[314423439,1708331450213,-215.851779,0.00038999,14]
[314423440,1708331450223,-151.0,0.00038999,14]
[314423441,1708331450232,-215.851779,0.00038999,14]
[314423442,1708331450241,-151.0,0.00038999,14]
[314423443,1708331450251,-397.4789,0.00038999,4]
[314423444,1708331450260,-320.345835,0.00038999,14]
[314423445,1708331450270,-320.345835,0.00038999,14]
[314423446,1708331450279,-289.628742,0.00038999,14]
[314423447,1708331450289,-151.0,0.00038999,14]
[314423448,1708331450298,-289.628742,0.00038999,14]
[314423449,1708331450308,-256.749914,0.00038999,14]
[314423450,1708331450317,-220.534074,0.00038999,14]
[314423451,1708331450326,-163.569567,0.00038999,14]
[314423452,1708331450336,-256.749914,0.00038999,14]
[314423453,1708331450345,-220.534074,0.00038999,14]
[314423454,1708331450353,-163.569567,0.00038999,14]
[314423455,1708331450362,-424.796395,0.00038999,14]
[314423456,1708331450371,-424.796395,0.00038999,14]
[314423457,1708331450380,-151.0,0.00038999,14]
[314423458,1708331450389,-151.0,0.00038999,14]
[314423459,1708331450399,-500.0,0.00038999,4]
[314423460,1708331450408,-6854.281877,0.00038999,14]
[314423461,1708331450417,-6854.281877,0.00038999,14]
[314423462,1708331450427,-8550.0,0.00038999,14]
[314423463,1708331450436,-8550.0,0.00038999,14]
[314423464,1708331450445,-1402.654032,0.00038999,14]
[314423465,1708331450455,-1402.654032,0.00038999,14]
[314423466,1708331450464,-151.0,0.00038999,14]
[314423467,1708331450473,-262.481154,0.00038999,14]
[314423468,1708331450483,-861.933875,0.00038999,14]
[314423469,1708331450493,-159.031273,0.00038999,14]
[314423470,1708331450502,-262.481154,0.00038999,14]
[314423471,1708331450510,-861.933875,0.00038999,14]
[314423472,1708331450520,-300.720131,0.00038999,14]
[314423473,1708331450529,-500.0,0.00038999,4]
[314423474,1708331450537,-300.720131,0.00038999,14]
[314423475,1708331450546,-500.0,0.00038999,4]
[314423476,1708331450555,-151.0,0.00038999,14]
[314423477,1708331450564,-151.0,0.00038999,14]
[314423478,1708331450574,-151.0,0.00038999,14]
[314423479,1708331450583,-761.988408,0.00038999,14]
[314423480,1708331450592,-761.988408,0.00038999,14]
[314423481,1708331450601,-168.39365,0.00038999,14]
[314423482,1708331450613,-168.39365,0.00038999,14]
[314423483,1708331450623,-500.0,0.00038999,4]
[314423484,1708331450633,-1141.94,0.00038999,4]
[314423485,1708331450642,-345.987493,0.00038999,14]
[314423486,1708331450652,-294.905721,0.00038999,14]
[314423487,1708331450661,-345.987493,0.00038999,14]
[314423488,1708331450671,-294.905721,0.00038999,14]
[314423489,1708331450680,-164.035459,0.00038999,14]